bitfinex/quotes_SOLUSD_20220129
["timestamp","ask_amount","ask_price","bid_price","bid_amount"]
[1643473325263,0.53932406,94.467,94.39,15.884]
[1643473325462,0.53932406,94.467,94.4,65.688]
[1643473325666,1.42761516,94.499,94.41,12.76]
[1643473325871,3.27e-05,94.502,94.411,0.56631973]
[1643473326165,3.27e-05,94.502,94.42,68.99]
[1643473326370,3.27e-05,94.502,94.43,75.75]
[1643473326568,3.27e-05,94.502,94.441,104.9]
[1643473326769,3.27e-05,94.502,94.45,12.76]
[1643473326965,3.27e-05,94.502,94.451,6.0]
[1643473327166,3.27e-05,94.502,94.46,6.0]
[1643473327371,3.27e-05,94.502,94.47,12.76]
[1643473327674,3.27e-05,94.502,94.48,21.864]
[1643473327872,3.27e-05,94.502,94.49,12.76]
[1643473328073,3.27e-05,94.502,94.5,6.0]
[1643473328272,2.85644571,94.635,94.501,66.25]
[1643473328473,15.865,94.65,94.51,12.76]
[1643473328474,15.61644571,94.65,94.51,12.76]
[1643473328675,2.95669142,94.647,94.53,15.861]
[1643473328873,2.8032641,94.647,94.531,0.25]
[1643473329073,10.17811347,94.648,94.54,6.0]
[1643473329276,13.13480489,94.671,94.55,12.76]
[1643473329474,2.85644571,94.75,94.573,0.30118729]
[1643473329672,2.85644571,94.75,94.598,0.32127186]
[1643473329876,2.85644571,94.792,94.61,12.76]
[1643473330085,39.27046189,94.782,94.62,6.0]
[1643473330378,24.9316,94.8,94.633,0.30630695]
[1643473330576,24.9316,94.8,94.641,66.0]
[1643473330779,24.9316,94.8,94.65,28.598]
[1643473330780,0.00548608,94.71,94.65,28.598]
[1643473331001,0.29097216,94.71,94.66,6.0]
[1643473331175,0.29097216,94.71,94.67,12.76]
[1643473331176,0.00097216,94.71,94.67,12.76]
[1643473331377,0.00097216,94.71,94.671,0.25]
[1643473331574,0.00097216,94.71,94.68,6.0]
[1643473331775,0.00097216,94.71,94.69,12.76]
[1643473331978,23.878,94.898,94.7,6.0]
[1643473331979,18.68644571,94.88,94.7,6.0]
[1643473332277,35.44033946,94.747,94.71,12.76]
[1643473332474,35.44033946,94.747,94.68,12.76]
[1643473332683,2.95669142,94.746,94.64,12.76]
[1643473333075,11.9912445,94.746,94.64,12.76]
[1643473333279,2.95669142,94.745,94.64,12.76]
[1643473333477,2.95669142,94.745,94.61,12.76]
[1643473333674,9.53455308,94.744,94.61,6.0]
[1643473334080,2.95669142,94.743,94.61,6.0]
[1643473334375,2.95669142,94.743,94.61,21.846]
[1643473334575,2.95669142,94.743,94.61,34.606]
[1643473334975,12.4912445,94.743,94.61,34.606]
[1643473335476,2.95669142,94.742,94.61,34.606]
[1643473335776,15.855,94.73,94.61,12.76]
[1643473335977,41.05476969,94.729,94.62,6.0]
[1643473336178,53.54601419,94.729,94.61,6.0]
[1643473336380,12.4912445,94.728,94.535,20.04055471]
[1643473336588,12.4912445,94.728,93.319,0.2]
[1643473336589,12.4912445,94.728,94.518,72.6025]
[1643473336781,15.858,94.71,94.52,28.621]
[1643473337079,12.76,94.7,94.52,28.621]
[1643473337281,12.76,94.69,94.52,28.621]
[1643473337479,36.12794767,94.689,94.52,28.621]
[1643473337680,39.08463909,94.689,94.52,28.621]
[1643473337881,15.864,94.68,94.53,6.0]
[1643473338179,12.76,94.67,94.53,6.0]
[1643473338379,42.17984619,94.669,94.53,6.0]
[1643473338579,6.0,94.66,94.53,6.0]
[1643473338879,6.0,94.66,94.5,52.869]
[1643473338880,34.626,94.66,94.5,12.76]
[1643473339085,10.16519753,94.659,94.5,12.76]
[1643473339284,13.12188895,94.659,94.51,6.0]
[1643473339483,42.17984619,94.669,94.52,12.76]
[1643473339883,42.17984619,94.669,94.53,6.0]
[1643473340089,42.17984619,94.669,94.53,34.62]
[1643473340286,42.17984619,94.669,94.531,0.25]
[1643473340485,42.17984619,94.669,94.531,6.25]
[1643473340687,42.17984619,94.669,94.532,104.9]
[1643473340888,42.17984619,94.669,94.54,6.0]
[1643473341089,42.17984619,94.669,94.542,6.0]
[1643473341387,42.17984619,94.669,94.543,0.25]
[1643473341690,42.17984619,94.669,94.55,6.0]
[1643473341887,42.17984619,94.669,94.551,0.25]
[1643473342084,2.95669142,94.668,94.551,0.25]
[1643473342790,2.95669142,94.668,94.542,6.0]
[1643473343288,2.95669142,94.668,94.51,12.76]
[1643473343289,6.0,94.658,94.517,6.0]
[1643473343488,6.0,94.658,94.52,6.0]
[1643473343889,42.17984619,94.669,94.52,6.0]
[1643473344193,6.0,94.659,94.521,0.25]
[1643473344590,2.95669142,94.658,94.521,0.25]
[1643473344790,2.95669142,94.658,94.52,6.0]
[1643473344991,2.95669142,94.658,94.5,12.76]
[1643473345190,10.16519753,94.657,94.497,437.96084509]
[1643473345391,10.16519753,94.657,94.5,12.76]
[1643473345694,2.95669142,94.656,94.51,6.0]
[1643473346112,2.95669142,94.656,94.511,6.25]
[1643473346414,6.0,94.659,94.52,12.76]
[1643473346611,2.95669142,94.692,94.53,6.0]
[1643473346833,12.76,94.73,94.541,104.9]
[1643473347015,12.76,94.73,94.54,12.76]
[1643473347016,2.95669142,94.709,94.552,104.9]
[1643473347213,2.95669142,94.709,94.57,15.851]
[1643473347414,35.34838272,94.708,94.571,0.25]
[1643473347615,35.34838272,94.708,94.58,6.0]
[1643473347822,35.34838272,94.708,94.581,0.25]
[1643473348416,2.95669142,94.707,94.581,0.25]
[1643473348615,6.0,94.716,94.59,15.85]
[1643473348817,6.0,94.716,94.591,0.25]
[1643473349015,65.602,94.76,94.6,6.0]
[1643473349016,12.76,94.76,94.6,6.0]
[1643473349216,28.607,94.77,94.61,12.76]
[1643473349521,35.50558659,94.749,94.601,0.25]
[1643473350016,15.852,94.73,94.6,6.0]
[1643473350218,39.38628765,94.729,94.601,0.25]
[1643473350421,42.34297907,94.729,94.601,0.25]
[1643473350622,2.95669142,94.728,94.601,0.25]
[1643473351418,2.95669142,94.728,94.591,0.25]
[1643473351821,15.856,94.71,94.591,0.25]
[1643473352026,34.42393169,94.709,94.48,0.25]
[1643473352219,34.42393169,94.709,94.591,0.25]
[1643473352220,37.38062311,94.709,94.591,0.25]
[1643473352620,2.95669142,94.708,94.591,0.25]
[1643473353219,2.95669142,94.708,94.56,6.0]
[1643473353820,2.95669142,94.708,94.561,104.9]
[1643473354019,15.86,94.69,94.571,6.0]
[1643473354222,40.50998984,94.689,94.571,6.0]
[1643473354526,43.46668126,94.689,94.571,6.0]
[1643473354722,2.95669142,94.688,94.571,6.0]
[1643473355325,2.95669142,94.688,94.572,0.25]
[1643473355524,2.95669142,94.688,94.55,6.0]
[1643473355724,2.95669142,94.688,94.551,105.15]
[1643473355925,2.95669142,94.688,94.551,0.25]
[1643473356531,2.84895445,94.687,94.55,6.0]
[1643473356727,2.34895445,94.687,94.55,6.0]
[1643473356923,2.95669142,94.688,94.543,6.0]
[1643473356924,2.95669142,94.686,94.543,6.0]
[1643473357325,45.25765246,94.669,94.543,6.0]
[1643473357524,45.25765246,94.669,94.551,6.0]
[1643473357726,6.0,94.659,94.551,6.0]
[1643473357927,6.0,94.659,94.552,0.25]
[1643473358930,45.25765246,94.669,94.561,6.0]
[1643473359131,45.25765246,94.669,94.551,104.9]
[1643473359331,45.25765246,94.669,94.552,0.25]
[1643473359530,45.25765246,94.669,94.561,6.0]
[1643473359929,45.25765246,94.669,94.562,0.25]
[1643473360129,6.0,94.659,94.562,0.25]
[1643473361136,4.7975094,94.659,94.562,0.25]
[1643473361336,2.95669142,94.658,94.53,12.76]
[1643473361534,107.85669142,94.658,94.543,6.0]
[1643473361834,2.95669142,94.657,94.544,0.25]
[1643473362234,34.58914402,94.651,94.544,0.25]
[1643473362433,2.85644571,94.65,94.544,0.25]
[1643473362632,6.0,94.641,94.544,0.25]
[1643473363035,120.768,94.64,94.534,0.25]
[1643473363233,18.82469142,94.64,94.496,72.3831]
[1643473363434,5.81313713,94.639,94.496,72.3831]
[1643473363633,5.81313713,94.639,94.506,6.0]
[1643473363834,45.30392874,94.631,94.478,18.61199449]
[1643473364033,45.30392874,94.631,94.488,6.0]
[1643473364034,2.85644571,94.629,94.488,6.0]
[1643473364233,2.95669142,94.63,94.499,104.9]
[1643473364433,45.30392874,94.631,94.51,0.31134564]
[1643473364633,45.30392874,94.631,94.51,82.06134564]
[1643473364838,45.30392874,94.631,94.516,62.99]
[1643473365036,45.30392874,94.631,94.526,6.0]
[1643473365437,2.95669142,94.63,94.526,6.0]
[1643473365836,2.95669142,94.63,94.525,6.0]
[1643473366042,2.95669142,94.63,94.515,104.9]
[1643473366236,2.95669142,94.63,94.501,104.9]
[1643473366436,2.95669142,94.63,94.51,6.0]
[1643473366638,2.95669142,94.63,94.511,6.0]
[1643473366844,45.30392874,94.631,94.511,6.0]
[1643473367438,45.30392874,94.631,94.49,12.76]
[1643473367639,15.871,94.62,94.49,12.76]
[1643473368039,2.95669142,94.619,94.491,0.25]
[1643473368237,2.95669142,94.619,94.491,105.15]
[1643473368439,45.30392874,94.631,94.5,6.0]
[1643473368639,45.30392874,94.631,94.501,6.0]
[1643473368839,6.0,94.621,94.501,111.15]
[1643473369042,6.0,94.621,94.51,6.0]
[1643473369240,6.0,94.621,94.511,0.25]
[1643473369442,6.0,94.621,94.512,104.9]
[1643473369642,6.0,94.621,94.522,6.0]
[1643473369945,6.0,94.621,94.523,0.25]
[1643473372056,2.85644571,94.654,94.523,6.25]
[1643473372272,2.85644571,94.661,94.523,2.72342757]
[1643473372477,6.0,94.644,94.533,6.0]
[1643473372675,6.0,94.651,94.534,104.9]
[1643473372873,34.49059243,94.643,94.534,105.15]
[1643473373977,6.0,94.651,94.544,6.0]
[1643473374479,6.0,94.651,94.545,0.25]
[1643473374676,6.0,94.651,94.545,105.15]
[1643473374876,2.85644571,94.671,94.555,6.0]
[1643473375082,2.85644571,94.688,94.561,62.99]
[1643473375276,2.85644571,94.699,94.571,104.9]
[1643473375677,2.85644571,94.701,94.582,104.9]
[1643473375877,2.85644571,94.702,94.583,0.25]
[1643473376080,35.62987724,94.695,94.592,6.0]
[1643473376277,6.0,94.686,94.593,0.25]
[1643473377179,6.0,94.686,94.602,6.0]
[1643473377379,6.0,94.686,94.603,0.25]
[1643473377583,6.0,94.686,94.593,0.25]
[1643473378583,35.62987724,94.695,94.593,0.25]
[1643473379991,6.0,94.685,94.602,6.0]
[1643473380285,6.0,94.685,94.603,0.25]
[1643473380481,6.0,94.685,94.593,104.9]
[1643473380684,6.0,94.685,94.597,6.0]
[1643473380881,6.0,94.685,94.603,6.0]
[1643473381082,6.0,94.685,94.54,15.855]
[1643473381083,2.95669142,94.684,94.57,12.76]
[1643473381383,2.95669142,94.684,94.561,128.4796]
[1643473381581,2.95669142,94.684,94.561,23.5796]
[1643473381782,2.09231915,94.684,94.561,23.5796]
[1643473381983,6.0,94.685,94.561,23.5796]
[1643473382481,6.0,94.685,94.561,128.4796]
[1643473382681,2.95669142,94.684,94.561,23.5796]
[1643473383283,5.81313713,94.684,94.561,23.5796]
[1643473383483,2.85644571,94.683,94.561,23.5796]
[1643473383686,2.85644571,94.682,94.561,23.5796]
[1643473384084,5.81313713,94.682,94.561,23.5796]
[1643473384287,32.7897163,94.68,94.561,23.5796]
[1643473384488,32.7897163,94.68,94.56,12.76]
[1643473384688,2.85644571,94.678,94.56,12.76]
[1643473385087,2.95669142,94.677,94.56,12.76]
[1643473385492,32.7897163,94.68,94.561,104.9]
[1643473385688,32.7897163,94.68,94.561,105.15]
[1643473386492,6.0,94.67,94.561,105.15]
[1643473388389,6.0,94.67,94.571,6.0]
[1643473388591,6.0,94.67,94.57,6.0]
[1643473388790,6.0,94.67,94.571,0.25]
[1643473389003,6.0,94.67,94.571,6.25]
[1643473389391,2.95669142,94.669,94.571,6.25]
[1643473389590,2.95669142,94.669,94.571,0.25]
[1643473389802,48.6497163,94.68,94.571,0.25]
[1643473389992,48.6497163,94.68,94.56,18.76]
[1643473390193,32.7897163,94.68,94.56,18.76]
[1643473390394,32.7897163,94.68,94.561,105.15]
[1643473390598,32.7897163,94.68,94.572,104.9]
[1643473390795,32.7897163,94.68,94.573,0.25]
[1643473391021,32.7897163,94.68,94.583,104.9]
[1643473391395,32.7897163,94.68,94.584,0.25]
[1643473393296,6.0,94.67,94.584,0.25]
[1643473395499,6.0,94.67,94.58,12.76]
[1643473395703,2.95669142,94.669,94.55,15.858]
[1643473395899,2.95669142,94.669,94.55,28.618]
[1643473396097,2.95669142,94.669,94.572,6.0]
[1643473396298,32.7897163,94.68,94.572,6.0]
[1643473396599,32.7897163,94.68,94.573,104.9]
[1643473396803,32.7897163,94.68,94.573,105.15]
[1643473397001,6.0,94.67,94.573,105.15]
[1643473397803,6.0,94.67,94.581,104.9]
[1643473398204,6.0,94.67,94.582,0.25]
[1643473399404,6.0,94.67,94.581,0.25]
[1643473399902,6.33699462,94.669,94.575,0.25]
[1643473401205,2.85644571,94.668,94.575,0.25]
[1643473401806,9.19344033,94.667,94.575,0.25]
[1643473402209,6.33699462,94.666,94.575,0.25]
[1643473402606,6.0,94.656,94.575,0.25]
[1643473403011,6.0,94.646,94.575,0.25]
[1643473403212,36.01272714,94.645,94.575,0.25]
[1643473405413,6.0,94.635,94.575,0.25]
[1643473408133,6.0,94.635,94.574,104.9]
[1643473409738,6.0,94.635,94.575,0.25]
[1643473410944,6.0,94.635,94.574,104.9]
[1643473412144,6.0,94.635,94.575,0.25]
[1643473414347,2.85644571,94.652,94.575,0.25]
[1643473414544,2.85644571,94.669,94.584,6.0]
[1643473414949,2.85644571,94.679,94.585,126.22212635]
[1643473415149,2.85644571,94.679,94.59,6.0]
[1643473415449,2.85644571,94.684,94.61,15.848]
[1643473415645,36.03615729,94.685,94.61,15.848]
[1643473415646,36.03615729,94.685,94.62,6.0]
[1643473415849,36.03615729,94.685,94.621,0.25]
[1643473419351,2.85644571,94.7,94.621,0.25]
[1643473419553,2.85644571,94.708,94.621,0.25]
[1643473419752,2.85644571,94.709,94.611,0.25]
[1643473419951,6.0,94.698,94.62,6.0]
[1643473420155,9.23081596,94.708,94.62,6.0]
[1643473420452,6.0,94.698,94.621,0.25]
[1643473421353,6.0,94.698,94.611,0.25]
[1643473421755,2.85644571,94.711,94.612,21.37215753]
[1643473421955,2.85644571,94.732,94.62,6.0]
[1643473422153,2.85644571,94.738,94.63,12.76]
[1643473422355,6.0,94.722,94.631,105.15]
[1643473422553,6.0,94.727,94.641,6.0]
[1643473422754,38.81552507,94.726,94.642,0.25]
[1643473423354,38.81552507,94.726,94.63,12.76]
[1643473423568,2.95669142,94.725,94.63,12.76]
[1643473424158,38.81552507,94.726,94.63,12.76]
[1643473424559,38.81552507,94.726,94.64,6.0]
[1643473424760,38.81552507,94.726,94.61,117.66]
[1643473424761,2.95669142,94.725,94.623,6.0]
[1643473425161,2.95669142,94.725,94.62,6.0]
[1643473426062,2.95669142,94.725,94.621,0.25]
[1643473426560,6.0,94.715,94.621,0.25]
[1643473426762,6.0,94.715,94.601,0.25]
[1643473427460,15.853,94.72,94.601,0.25]
[1643473428962,107.85669142,94.719,94.601,0.25]
[1643473429165,15.855,94.7,94.601,0.25]
[1643473429765,2.95669142,94.699,94.601,0.25]
[1643473430165,15.855,94.7,94.601,0.25]
[1643473430565,2.95669142,94.699,94.601,0.25]
[1643473431171,46.62550127,94.688,94.601,0.25]
[1643473431466,46.62550127,94.688,94.6,12.76]
[1643473431864,46.62550127,94.688,94.58,12.76]
[1643473432066,46.62550127,94.688,94.595,6.0]
[1643473432768,46.62550127,94.688,94.596,0.25]
[1643473437970,46.62550127,94.688,94.596,6.25]
[1643473438373,6.0,94.678,94.596,6.25]
[1643473438579,6.0,94.678,94.596,0.25]
[1643473438777,6.0,94.678,94.6,12.76]
[1643473439174,6.0,94.678,94.601,0.25]
[1643473441204,4.7931843,94.678,94.601,0.25]
[1643473442005,4.7931843,94.678,94.6,12.76]
[1643473443307,4.7931843,94.678,94.601,0.25]
[1643473445108,4.7931843,94.678,94.6,117.66]
[1643473446812,4.7931843,94.678,94.601,18.45322138]
[1643473447212,1.45457753,94.688,94.602,18.20322138]
[1643473447413,1.45457753,94.688,94.602,20.67506043]
[1643473447614,1.45457753,94.692,94.603,0.25]
[1643473447823,1.45457753,94.691,94.603,83.91506043]
[1643473448016,1.45457753,94.693,94.613,6.0]
[1643473448215,1.45457753,94.692,94.62,12.76]
[1643473448416,1.45457753,94.694,94.621,104.9]
[1643473448616,1.45457753,94.695,94.621,105.15]
[1643473448817,1.45457753,94.694,94.621,105.15]
[1643473449022,1.45457753,94.695,94.621,105.15]
[1643473449917,1.45457753,94.694,94.621,105.15]
[1643473450119,1.45457753,94.696,94.621,105.15]
[1643473450718,1.45457753,94.696,94.621,104.65]
[1643473451118,1.45457753,94.696,94.621,104.4]
[1643473451520,37.65099274,94.709,94.621,104.4]
[1643473451521,1.45457753,94.694,94.621,104.4]
[1643473452017,1.45457753,94.695,94.62,12.76]
[1643473452219,1.45457753,94.695,94.62,117.66]
[1643473452418,1.45457753,94.696,94.62,117.66]
[1643473452619,1.45457753,94.698,94.62,117.66]
[1643473453020,1.45457753,94.699,94.63,6.0]
[1643473453224,1.45457753,94.703,94.63,6.0]
[1643473453420,1.45457753,94.703,94.631,105.15]
[1643473453623,1.45457753,94.702,94.641,6.0]
[1643473453823,1.45457753,94.705,94.642,0.25]
[1643473455124,1.45457753,94.705,94.632,0.25]
[1643473455523,1.45457753,94.707,94.632,0.25]
[1643473455724,1.45457753,94.706,94.632,0.25]
[1643473455923,1.45457753,94.704,94.631,6.0]
[1643473456123,1.45457753,94.703,94.631,6.0]
[1643473456325,1.45457753,94.703,94.632,0.25]
[1643473456523,1.45457753,94.7,94.632,0.25]
[1643473456727,1.45457753,94.702,94.632,0.25]
[1643473456927,1.45457753,94.703,94.64,12.76]
[1643473457127,1.45457753,94.706,94.64,12.76]
[1643473457336,1.45457753,94.709,94.641,0.25]
[1643473457628,1.45457753,94.711,94.641,0.25]
[1643473457827,1.45457753,94.71,94.641,0.25]
[1643473458032,1.45457753,94.711,94.64,11.5299]
[1643473458428,1.45457753,94.71,94.64,11.5299]
[1643473459256,1.45457753,94.71,94.641,0.25]
[1643473459450,1.45457753,94.709,94.641,0.25]
[1643473459650,1.45457753,94.711,94.641,0.25]
[1643473459849,1.45457753,94.71,94.641,0.25]
[1643473460252,1.45457753,94.711,94.641,0.25]
[1643473460654,1.45457753,94.708,94.641,0.25]
[1643473460854,1.45457753,94.71,94.641,0.25]
[1643473461056,1.45457753,94.711,94.641,0.25]
[1643473462456,1.45457753,94.712,94.64,10.323642]
[1643473462656,1.45457753,94.711,94.641,0.25]
[1643473462859,6.0,94.702,94.641,0.25]
[1643473463059,6.0,94.702,94.64,10.323642]
[1643473464367,1.45457753,94.71,94.641,0.25]
[1643473464560,6.0,94.702,94.641,0.25]
[1643473465559,6.0,94.702,94.62,15.846]
[1643473465762,1.45457753,94.699,94.609,104.9]
[1643473465961,1.45457753,94.693,94.609,104.9]
[1643473466362,1.45457753,94.687,94.609,104.9]
[1643473466763,39.62028487,94.684,94.609,104.9]
[1643473467161,0.25,94.683,94.609,104.9]
[1643473467362,0.25,94.683,94.61,0.25]
[1643473467563,0.25,94.683,94.609,104.9]
[1643473468162,1.45457753,94.681,94.584,22.6052]
[1643473468362,0.25,94.68,94.584,22.6052]
[1643473468563,1.45457753,94.673,94.579,104.9]
[1643473468764,0.25,94.672,94.579,104.9]
[1643473469163,4.66126895,94.672,94.579,104.9]
[1643473469362,2.95669142,94.671,94.58,0.25]
[1643473469564,2.95669142,94.671,94.579,104.9]
[1643473469764,0.25,94.67,94.579,104.9]
[1643473470262,6.0,94.661,94.579,104.9]
[1643473470663,0.25,94.66,94.579,104.9]
[1643473470863,0.25,94.66,94.58,0.25]
[1643473471063,0.25,94.66,94.589,6.0]
[1643473471764,0.25,94.674,94.574,112.9]
[1643473471964,6.0,94.665,94.571,23.4119]
[1643473472167,1.45457753,94.67,94.571,23.4119]
[1643473472365,6.0,94.662,94.571,23.4119]
[1643473472564,6.0,94.662,94.572,104.9]
[1643473472767,0.25,94.661,94.572,104.9]
[1643473473166,0.25,94.661,94.573,0.25]
[1643473474467,1.45457753,94.674,94.573,0.25]
[1643473474870,1.45457753,94.676,94.573,0.25]
[1643473475269,6.0,94.666,94.573,0.25]
[1643473476576,1.45457753,94.677,94.583,62.99]
[1643473476774,1.45457753,94.682,94.59,75.75]
[1643473476971,1.45457753,94.695,94.592,62.99]
[1643473477173,1.45457753,94.695,94.595,62.99]
[1643473477371,1.45457753,94.695,94.604,62.99]
[1643473477572,1.45457753,94.695,94.603,104.9]
[1643473477573,1.45457753,94.704,94.614,6.0]
[1643473477769,32.74428882,94.707,94.615,0.25]
[1643473477970,32.74428882,94.707,94.62,6.0]
[1643473478173,32.74428882,94.707,94.621,104.9]
[1643473478371,0.25,94.706,94.621,105.15]
[1643473478570,1.45457753,94.711,94.631,6.0]
[1643473478771,1.45457753,94.713,94.632,0.25]
[1643473479373,1.45457753,94.717,94.632,0.25]
[1643473479781,1.45457753,94.721,94.632,0.25]
[1643473479974,1.45457753,94.722,94.64,6.0]
[1643473480174,1.45457753,94.723,94.64,6.0]
[1643473480377,1.45457753,94.723,94.641,0.25]
[1643473480575,1.45457753,94.722,94.641,0.25]
[1643473480777,0.25,94.722,94.641,0.25]
[1643473481176,1.45457753,94.723,94.641,0.25]
[1643473481379,1.70457753,94.723,94.641,0.25]
[1643473481575,1.70457753,94.723,94.641,105.15]
[1643473482281,0.25,94.723,94.641,105.15]
[1643473482677,1.45457753,94.724,94.641,105.15]
[1643473483078,34.12715006,94.725,94.651,6.0]
[1643473483278,34.12715006,94.725,94.652,0.25]
[1643473485178,0.25,94.724,94.652,11.96]
[1643473485579,1.45457753,94.732,94.653,104.9]
[1643473485781,1.45457753,94.738,94.662,6.0]
[1643473485986,0.25,94.731,94.663,6.0]
[1643473486182,1.45457753,94.74,94.663,6.0]
[1643473486381,6.0,94.73,94.664,0.25]
[1643473486982,6.0,94.731,94.664,0.25]
[1643473487182,6.0,94.731,94.664,105.15]
[1643473487583,0.25,94.739,94.664,0.25]
[1643473487784,6.0,94.732,94.663,0.25]
[1643473487982,5.0,94.732,94.669,6.0]
[1643473488382,5.0,94.732,94.67,0.25]
[1643473488784,5.0,94.732,94.669,6.0]
[1643473488785,5.0,94.732,94.622,25.55293476]
[1643473488984,5.0,94.732,94.64,12.76]
[1643473489185,2.95669142,94.731,94.63,12.76]
[1643473489383,2.95669142,94.731,94.557,4.39667832]
[1643473489384,1.45457753,94.73,94.602,1.46923476]
[1643473489583,1.45457753,94.73,94.6,12.76]
[1643473489584,1.45457753,94.726,94.6,12.76]
[1643473489784,1.45457753,94.728,94.6,12.76]
[1643473489987,15.854,94.72,94.599,1.46923476]
[1643473490184,39.58731313,94.713,94.584,1.46923476]
[1643473490384,1.45457753,94.703,94.573,1.46923476]
[1643473490584,1.45457753,94.698,94.569,1.46923476]
[1643473490891,1.45457753,94.695,94.565,1.46923476]
[1643473491097,107.85669142,94.702,94.55,27.58606858]
[1643473491098,12.76,94.68,94.562,1.46923476]
[1643473491292,12.76,94.68,94.538,112.9]
[1643473491293,32.7293595,94.673,94.542,1.46923476]
[1643473491688,12.76,94.67,94.542,1.46923476]
[1643473492085,1.45457753,94.664,94.53,1.46923476]
[1643473492314,17.17126895,94.67,94.537,1.46923476]
[1643473492492,15.865,94.65,94.54,1.46923476]
[1643473493590,2.95669142,94.663,94.541,0.25]
[1643473493790,2.95669142,94.663,94.542,1.46923476]
[1643473494193,2.95669142,94.663,94.543,0.25]
[1643473494993,2.95669142,94.663,94.544,6.0]
[1643473495193,25.97467753,94.669,94.544,6.0]
[1643473495390,24.5201,94.669,94.545,0.25]
[1643473495992,24.5201,94.669,94.551,104.9]
[1643473496391,0.25,94.668,94.552,0.25]
[1643473496590,0.25,94.668,94.561,6.0]
[1643473496791,0.25,94.668,94.562,63.24]
[1643473497010,32.7293595,94.673,94.572,6.0]
[1643473497195,32.7293595,94.673,94.573,104.9]
[1643473497391,1.45457753,94.695,94.58,6.0]
[1643473497596,1.45457753,94.696,94.584,104.9]
[1643473497794,1.45457753,94.693,94.585,0.25]
[1643473497996,1.45457753,94.687,94.55,1.46923476]
[1643473498194,1.45457753,94.676,94.539,1.46923476]
[1643473498394,35.70841606,94.675,94.539,1.46923476]
[1643473498599,35.70841606,94.675,94.54,12.76]
[1643473498796,35.70841606,94.675,94.54,14.22923476]
[1643473498995,35.70841606,94.675,94.541,25.79323476]
[1643473499204,35.70841606,94.675,94.55,78.848]
[1643473499396,35.70841606,94.675,94.551,6.25]
[1643473499594,35.70841606,94.675,94.561,104.9]
[1643473499821,35.70841606,94.675,94.562,0.25]
[1643473500000,35.70841606,94.675,94.571,6.0]
[1643473500200,1.45457753,94.694,94.58,12.76]
[1643473500399,1.45457753,94.712,94.581,62.99]
[1643473500597,1.45457753,94.724,94.591,68.99]
[1643473500796,1.45457753,94.724,94.601,62.99]
[1643473500998,1.45457753,94.724,94.611,6.0]
[1643473501198,48.3336,94.749,94.612,49.1693]
[1643473501199,37.57511446,94.731,94.612,49.1693]
[1643473501399,1.45457753,94.733,94.612,49.4193]
[1643473501697,48.3336,94.749,94.612,49.4193]
[1643473501698,1.45457753,94.735,94.622,6.0]
[1643473501899,6.0,94.723,94.623,0.25]
[1643473502096,6.0,94.713,94.623,0.25]
[1643473502296,33.65965469,94.712,94.623,0.25]
[1643473502498,33.65965469,94.712,94.63,6.0]
[1643473502901,33.65965469,94.712,94.631,0.25]